fUSD/lending_fUSD_20251224
["ID","MTS","AMOUNT","RATE_DAILY","PERIOD"]
[399606603,1766542239557,-150.0,0.00015288,2]
[399606604,1766542239568,-150.0,0.00015288,2]
[399606605,1766542239579,-150.0,0.00015288,2]
[399606606,1766542239589,-150.0,0.00015288,2]
[399606607,1766542239599,-152.31137415,0.00015288,2]
[399606608,1766542239610,-150.0,0.00015288,2]
[399606609,1766542239620,-150.0,0.00015288,2]
[399606610,1766542239636,-150.0,0.00015288,2]
[399606611,1766542239646,-150.0,0.00015288,2]
[399606612,1766542239657,-150.0,0.00015288,2]
[399606613,1766542239667,-664.46,0.00015317,2]
[399606614,1766542239678,-6801.46609019,0.00015352,2]
[399606615,1766542239689,-151.0,0.00015387,2]
[399606616,1766542239699,-150.0,0.00015388,2]
[399606617,1766542239709,-151.0,0.00015389,2]
[399606618,1766542239720,-2495.0,0.00015392,2]
[399606619,1766542239730,-151.0,0.00015392,2]
[399606620,1766542239740,-150.0,0.00015488,2]
[399606621,1766542239751,-150.0,0.0001553,2]
[399606622,1766542239760,-150.0,0.0001553,2]
[399606623,1766542239771,-782.01,0.00015583,2]
[399606624,1766542239781,-150.0,0.00015587,2]
[399606625,1766542239791,-664.46,0.00015591,2]
[399606626,1766542239801,-1000.0,0.00015609,2]
[399606627,1766542239812,-6801.46609019,0.0001561,2]
[399606629,1766542239822,-150.0,0.00015627,2]
[399606631,1766542239832,-150.0,0.00015627,2]
[399606632,1766542239843,-150.0,0.00015627,2]
[399606633,1766542239853,-500.0,0.00015644,2]
[399606634,1766542239864,-500.0,0.00015687,2]
[399606635,1766542239874,-150.0,0.00015687,2]
[399606636,1766542239885,-255.0,0.00015699,2]
[399606637,1766542239895,-1000.0,0.00015721,2]
[399606639,1766542239905,-734.33716546,0.00015721,2]
[399606640,1766542239915,-1000.0,0.00015721,2]
[399606641,1766542239926,-1000.0,0.00015721,2]
[399606642,1766542239936,-1000.0,0.00015721,2]
[399606643,1766542239946,-150.0,0.00015773,2]
[399606644,1766542239956,-150.0,0.00015773,2]
[399606645,1766542239966,-150.0,0.00015787,2]
[399606646,1766542239976,-150.0,0.00015854,2]
[399606647,1766542239986,-150.0,0.00015854,2]
[399606648,1766542240000,-150.0,0.00015854,2]
[399606649,1766542240011,-150.0,0.00015854,2]
[399606650,1766542240021,-664.46,0.00015865,2]
[399606651,1766542240032,-6801.46609019,0.00015868,2]
[399606652,1766542240042,-150.0,0.00015887,2]
[399606653,1766542240056,-420.0,0.00015957,2]
[399606654,1766542240066,-150.0,0.00015967,2]
[399606655,1766542240077,-150.0,0.00015967,2]
[399606656,1766542240087,-150.0,0.00015967,2]
[399606657,1766542240099,-150.0,0.00015987,2]
[399606658,1766542240109,-150.0,0.00016016,2]
[399606659,1766542240121,-150.0,0.00016016,2]
[399606660,1766542240131,-1680.0,0.00016031,2]
[399606661,1766542240143,-173.0,0.00016031,2]
[399606662,1766542240153,-153.69197259,0.00016036,4]
[399606663,1766542240164,-250.0,0.00016036,2]
[399606664,1766542240175,-1680.0,0.00016067,2]
[399606665,1766542240188,-150.0,0.00016087,2]
[399606666,1766542240198,-6801.46609019,0.00016126,2]
[399606667,1766542240208,-150.0,0.00016137,2]
[399606668,1766542240219,-430.48861067,0.00016138,2]
[399606669,1766542240230,-334.5472959,0.00016138,2]
[399606670,1766542240240,-664.4629925,0.00016139,2]
[399606671,1766542240250,-150.0,0.00016187,2]
[399606672,1766542240260,-150.0,0.00016258,2]
[399606673,1766542240272,-150.0,0.00016258,2]
[399606674,1766542240282,-1005.52960435,0.00016268,2]
[399606675,1766542240293,-502.73869828,0.00016268,2]
[399606676,1766542240303,-1474.12775144,0.00016268,2]
[399606677,1766542240313,-1500.0,0.00016268,2]
[399606678,1766542240323,-150.0,0.00016287,2]
[399606679,1766542240333,-150.0,0.00016307,2]
[399606680,1766542240344,-150.0,0.00016307,2]
[399606682,1766542240354,-150.0,0.00016307,2]
[399606683,1766542240364,-173.0,0.00016348,2]
[399606684,1766542240375,-6801.46609019,0.00016384,2]
[399606685,1766542240385,-150.0,0.00016387,2]
[399606686,1766542240395,-4004.33883935,0.00016406,2]
[399606687,1766542240406,-150.0,0.0001642,2]
[399606688,1766542240416,-150.0,0.0001642,2]
[399606689,1766542240426,-150.0,0.0001642,2]
[399606690,1766542240436,-150.0,0.0001642,2]
[399606691,1766542240447,-173.0,0.00016468,2]
[399606692,1766542240457,-150.0,0.00016487,2]
[399606693,1766542240467,-328.24,0.00016487,2]
[399606694,1766542240478,-150.0,0.00016501,2]
[399606695,1766542240488,-150.0,0.00016501,2]
[399606696,1766542240498,-150.0,0.00016587,2]
[399606697,1766542240509,-173.0,0.00016644,2]
[399606699,1766542240519,-150.0,0.00016647,2]
[399606701,1766542240529,-150.0,0.00016647,2]
[399606702,1766542240539,-150.0,0.00016647,2]
[399606703,1766542240549,-4004.33883935,0.00016653,2]
[399606704,1766542240560,-769.14538111,0.0001666,2]
[399606705,1766542240583,-150.0,0.00016687,2]
[399606706,1766542240594,-150.0,0.00016744,2]
[399606707,1766542240604,-150.0,0.00016744,2]
[399606708,1766542240615,-173.0,0.00016749,2]
[399606709,1766542240625,-173.0,0.00016785,2]
[399606710,1766542240635,-150.0,0.00016786,2]
[399606711,1766542240646,-504.03,0.000168,2]
[399606712,1766542240656,-479.77732969,0.00016816,2]
[399606713,1766542240667,-200.0,0.00016864,2]
[399606714,1766542240678,-150.0,0.00016886,2]
[399606715,1766542240688,-173.0,0.00016899,2]
[399606716,1766542240698,-182.65488251,0.00016899,2]
[399606717,1766542240709,-4004.33883935,0.000169,2]
[399606718,1766542240719,-706.057237,0.000169,2]
[399606719,1766542240729,-436.87559846,0.000169,2]
[399606720,1766542240739,-2199.46377936,0.000169,2]
[399606721,1766542240750,-469.96474339,0.000169,2]
[399606722,1766542240760,-483.13530374,0.000169,2]
[399606723,1766542240771,-500.0,0.000169,2]
[399606724,1766542240781,-500.0,0.000169,2]
[399606725,1766542240791,-500.0,0.000169,2]
[399606726,1766542240801,-500.0,0.000169,2]
[399606727,1766542240811,-500.0,0.000169,2]
[399606728,1766542240822,-500.0,0.000169,2]
[399606729,1766542240832,-500.0,0.000169,2]
[399606730,1766542240842,-500.0,0.000169,2]
[399606731,1766542240852,-500.0,0.000169,2]
[399606732,1766542240863,-500.0,0.000169,2]
[399606733,1766542240873,-500.0,0.000169,2]
[399606734,1766542240883,-500.0,0.000169,2]
[399606735,1766542240893,-500.0,0.000169,2]
[399606736,1766542240904,-500.0,0.000169,2]
[399606737,1766542240914,-500.0,0.000169,2]
[399606738,1766542240930,-500.0,0.000169,2]
[399606740,1766542240940,-500.0,0.000169,2]
[399606741,1766542240950,-500.0,0.000169,2]
[399606742,1766542240962,-500.0,0.000169,2]
[399606743,1766542240972,-500.0,0.000169,2]
[399606744,1766542240982,-500.0,0.000169,2]
[399606745,1766542240993,-500.0,0.000169,2]
[399606746,1766542241003,-500.0,0.000169,2]
[399606747,1766542241014,-500.0,0.000169,2]
[399606748,1766542241024,-500.0,0.000169,2]
[399606749,1766542241034,-425.97674525,0.000169,2]
[399606750,1766542241045,-433.0,0.00016909,2]
[399606751,1766542241060,-170.99701499,0.00016986,2]
[399606752,1766542241071,-161.36386193,0.00016986,2]
[399606753,1766542241081,-167.34253096,0.00016986,2]
[399606754,1766542241094,-257.33467835,0.00016986,2]
[399606755,1766542241104,-165.56757256,0.00016986,2]
[399606756,1766542241114,-163.76766148,0.00016986,2]
[399606757,1766542241128,-153.48620936,0.00016986,2]
[399606758,1766542241139,-151.59672163,0.00016986,2]
[399606759,1766542241149,-156.0209703,0.00016986,2]
[399606760,1766542241159,-154.0769181,0.00016986,2]
[399606761,1766542241170,-155.57587923,0.00016986,2]
[399606762,1766542241180,-168.10359293,0.00016986,2]
[399606763,1766542241191,-3072.3204851,0.00016992,2]
[399606764,1766542241202,-1346.26941216,0.00016994,5]
[399606765,1766542241213,-85349.6408007,0.00016995,2]
[399606766,1766542241223,-66578.41226,0.00016995,2]
[399606767,1766542241234,-113196.1072389,0.00016995,2]
[399606768,1766542241245,-666.0,0.00016999,2]
[399606769,1766542241255,-500.0,0.00016999,2]
[399606770,1766542241267,-500.0,0.00016999,2]
[399606771,1766542241283,-522.31997022,0.00016999,2]
[399606772,1766542241295,-300.0,0.00016999,2]
[399606773,1766542241306,-1500.0,0.00016999,2]
[399606774,1766542241317,-1500.0,0.00016999,2]
[399606775,1766542241328,-1500.0,0.00016999,2]
[399606776,1766542241339,-1500.0,0.00016999,2]
[399606777,1766542241349,-1500.0,0.00016999,2]
[399606778,1766542241360,-1500.0,0.00016999,2]
[399606779,1766542241370,-1500.0,0.00016999,2]
[399606780,1766542241381,-1500.0,0.00016999,2]
[399606781,1766542241392,-1500.0,0.00016999,2]
[399606782,1766542241402,-1500.0,0.00016999,2]
[399606783,1766542241413,-1500.0,0.00016999,2]
[399606784,1766542241424,-1500.0,0.00016999,2]
[399606785,1766542241434,-1500.0,0.00016999,2]
[399606786,1766542241444,-1500.0,0.00016999,2]
[399606787,1766542241455,-1500.0,0.00016999,2]
[399606788,1766542241466,-1500.0,0.00016999,2]
[399606789,1766542241477,-1500.0,0.00016999,2]
[399606790,1766542241488,-1500.0,0.00016999,2]
[399606791,1766542241498,-423.34883705,0.00016999,2]
[399606792,1766542241508,-500.0,0.00016999,2]
[399606793,1766542241519,-500.0,0.00016999,2]
[399606794,1766542241529,-236.0914297,0.00016999,2]
[399606795,1766542241540,-1500.0,0.00016999,2]
[399606796,1766542241550,-1500.0,0.00016999,2]
[399606797,1766542241561,-1500.0,0.00016999,2]
[399606798,1766542241571,-1500.0,0.00016999,2]
[399606799,1766542241581,-1500.0,0.00016999,2]
[399606800,1766542241591,-1500.0,0.00016999,2]
[399606801,1766542241601,-1500.0,0.00016999,2]
[399606802,1766542241612,-1500.0,0.00016999,2]
[399606803,1766542241623,-1500.0,0.00016999,2]
[399606804,1766542241633,-1500.0,0.00016999,4]
[399606805,1766542241643,-1500.0,0.00016999,2]
[399606806,1766542241653,-1500.0,0.00016999,2]
[399606807,1766542241664,-1500.0,0.00016999,2]
[399606808,1766542241674,-1500.0,0.00016999,2]
[399606809,1766542241684,-1500.0,0.00016999,2]
[399606810,1766542241695,-229.49197247,0.00016999,2]
[399606811,1766542241704,-1500.0,0.00016999,2]
[399606812,1766542241716,-1500.0,0.00016999,2]
[399606813,1766542241726,-1500.0,0.00016999,2]
[399606814,1766542241736,-1500.0,0.00016999,2]
[399606815,1766542241746,-300.0,0.00016999,2]
[399606816,1766542241757,-666.0,0.00016999,2]
[399606817,1766542241768,-537.93589507,0.00016999,2]
[399606818,1766542241778,-465.38315917,0.00016999,2]
[399606819,1766542241789,-3209443.64871118,0.00017,2]
[399606830,1766542242879,-29612.87531774,0.00017,2]
[399606831,1766542242892,-2192.47987607,0.00017,2]
[399606832,1766542242904,-582.66729978,0.00017,2]
[399606833,1766542242916,-511.81040021,0.00017,2]
[399606834,1766542242932,-24845.04712779,0.00017,2]
[399606835,1766542242944,-758.9550397,0.00017,2]
[399606836,1766542243058,-6801.46609019,0.00016642,2]
[399606837,1766542243066,-1502732.69027526,0.00017,2]
[399606838,1766542243076,-375808.55676807,0.00017,2]
[399606839,1766542243087,-250.0,0.00017,2]
[399606840,1766542243095,-2000.0,0.00017,2]
[399606841,1766542243103,-200.0,0.00017,2]
[399606842,1766542243112,-200.0,0.00017,2]
[399606843,1766542243122,-151.0,0.00017,2]
[399606844,1766542243131,-151.0,0.00017,2]
[399606845,1766542243139,-151.0,0.00017,2]
[399606846,1766542243147,-192.86281183,0.00017,2]
[399606847,1766542243154,-151.0,0.00017,2]
[399606848,1766542243162,-200.0,0.00017,2]
[399606849,1766542243171,-153.840017,0.00017,2]
[399606850,1766542243179,-157.023662,0.00017,2]
[399606851,1766542243187,-151.0,0.00017,2]
[399606852,1766542243195,-189.241851,0.00017,2]
[399606853,1766542243203,-151.0,0.00017,2]
[399606854,1766542243211,-151.0,0.00017,2]
[399606855,1766542243219,-151.0,0.00017,2]
[399606856,1766542243226,-151.0,0.00017,2]
[399606857,1766542243234,-151.0,0.00017,2]
[399606858,1766542243243,-153.123628,0.00017,2]
[399606859,1766542243252,-151.0,0.00017,2]
[399606860,1766542243261,-151.0,0.00017,2]
[399606861,1766542243269,-173.0,0.00017009,2]
[399606862,1766542243279,-481.42,0.00017014,2]
[399606863,1766542243291,-659.51,0.00017014,2]
[399606864,1766542243299,-481.37,0.00017014,2]
[399606865,1766542243308,-481.37,0.00017014,2]
[399606866,1766542243316,-481.42,0.00017014,2]
[399606867,1766542243323,-659.51,0.00017014,2]
[399606868,1766542243331,-481.37,0.00017014,2]
[399606869,1766542243341,-481.42,0.00017014,2]
[399606870,1766542243351,-481.37,0.00017014,2]
[399606871,1766542243360,-481.42,0.00017014,2]
[399606872,1766542243370,-481.42,0.00017014,2]
[399606873,1766542243380,-481.37,0.00017014,2]
[399606874,1766542243390,-481.42,0.00017014,2]
[399606875,1766542243405,-481.37,0.00017014,2]
[399606876,1766542243414,-481.37,0.00017014,2]
[399606877,1766542243424,-481.42,0.00017014,2]
[399606878,1766542243434,-481.42,0.00017014,2]
[399606879,1766542243444,-481.37,0.00017014,2]
[399606880,1766542243454,-481.37,0.00017014,2]
[399606881,1766542243463,-481.42,0.00017014,2]
[399606882,1766542243475,-481.42,0.00017014,2]
[399606883,1766542243486,-481.37,0.00017014,2]
[399606884,1766542243496,-481.42,0.00017014,2]
[399606885,1766542243507,-481.37,0.00017014,2]
[399606886,1766542243517,-481.42,0.00017014,2]
[399606887,1766542243529,-208.35,0.00017014,2]
[399606888,1766542243539,-168.0,0.00017015,2]
[399606889,1766542243550,-168.0,0.0001705,2]
[399606890,1766542243561,-173.0,0.00017058,2]
[399606891,1766542243572,-168.0,0.00017082,2]
[399606892,1766542243583,-168.0,0.00017083,2]
[399606893,1766542243594,-181.71,0.0001709,2]
[399606894,1766542243604,-200.0,0.0001717,2]
[399606895,1766542243615,-200.0,0.0001717,2]
[399606896,1766542243626,-397.0,0.00017254,2]
[399606897,1766542243636,-168.0,0.00017265,2]
[399606898,1766542243645,-173.0,0.00017312,2]
[399606899,1766542243656,-782.01,0.00017315,2]
[399606900,1766542243667,-168.0,0.00017322,2]
[399606901,1766542243677,-200.0,0.00017342,2]
[399606902,1766542243687,-1000.0,0.00017343,2]
[399606903,1766542243698,-173.0,0.00017447,2]
[399606904,1766542243708,-587.0,0.00017472,2]
[399606905,1766542243718,-346.92554585,0.00017507,2]
[399606906,1766542243729,-173.0,0.00017544,2]
[399606907,1766542243739,-2351.0,0.00017591,2]
[399606908,1766542243755,-151.0,0.00017591,2]
[399606909,1766542243766,-151.0,0.00017591,2]
[399606910,1766542243776,-151.0,0.00017592,2]
[399606911,1766542243787,-151.0,0.00017592,2]
[399606912,1766542243798,-180.04656,0.00017592,2]
[399606913,1766542243808,-151.0,0.00017592,2]
[399606914,1766542243818,-174.08903,0.00017592,2]
[399606915,1766542243829,-151.0,0.00017592,2]
[399606916,1766542243840,-151.0,0.00017592,2]
[399606917,1766542243851,-151.0,0.00017592,2]
[399606918,1766542243862,-173.0,0.00017618,2]
[399606919,1766542243872,-153.2941,0.0001763,2]
[399606920,1766542243884,-153.0255,0.0001763,2]
[399606921,1766542243895,-2351.0,0.00017635,2]
[399606922,1766542243905,-173.0,0.00017674,2]
[399606923,1766542243916,-328.24,0.00017857,2]
[399606924,1766542243927,-250.38967152,0.00017913,2]
[399606925,1766542243937,-501.02283993,0.00017919,2]
[399606926,1766542243948,-168.0,0.00017978,2]
[399606927,1766542243959,-168.0,0.00018001,2]
[399606928,1766542243970,-166.8,0.00018011,2]
[399606929,1766542243980,-168.0,0.00018042,2]
[399606930,1766542243991,-1000.0,0.00018082,2]
[399606931,1766542244001,-168.0,0.00018136,2]
[399606932,1766542244011,-736.0,0.00018206,2]
[399606933,1766542244021,-777.86,0.00018409,2]
[399606934,1766542244032,-777.86,0.00018409,2]
[399606935,1766542244043,-152.0,0.00018573,3]
[399606936,1766542244055,-1000.0,0.0001876,2]
[399606937,1766542244066,-150.99,0.000188,2]
[399606938,1766542244076,-150.99,0.000188,2]
[399606939,1766542244087,-150.99,0.000188,2]
[399606940,1766542244098,-150.99,0.000188,2]
[399606941,1766542244114,-150.99,0.000188,2]
[399606942,1766542244126,-150.99,0.000188,2]
[399606943,1766542244136,-150.99,0.000188,2]
[399606944,1766542244147,-150.99,0.000188,2]
[399606945,1766542244158,-150.99,0.000188,2]
[399606946,1766542244169,-150.99,0.000188,2]
[399606947,1766542244179,-150.99,0.000188,2]
[399606948,1766542244189,-150.99,0.000188,2]
[399606949,1766542244200,-150.99,0.000188,2]
[399606950,1766542244210,-150.99,0.000188,2]
[399606951,1766542244221,-150.99,0.000188,2]
[399606952,1766542244231,-150.99,0.000188,2]
[399606953,1766542244243,-150.99,0.000188,2]
[399606954,1766542244254,-150.99,0.000188,2]
[399606955,1766542244264,-150.99,0.000188,2]
[399606956,1766542244276,-150.99,0.000188,2]
[399606957,1766542244290,-150.99,0.000188,2]
[399606958,1766542244301,-150.99,0.000188,2]
[399606959,1766542244312,-150.99,0.000188,2]
[399606960,1766542244323,-150.99,0.000188,2]
[399606961,1766542244334,-150.99,0.000188,2]
[399606962,1766542244345,-150.99,0.000188,2]
[399606963,1766542244356,-150.99,0.000188,2]
[399606964,1766542244367,-150.99,0.000188,2]
[399606965,1766542244378,-150.99,0.000188,2]
[399606966,1766542244389,-359.76179104,0.00018876,2]
[399606967,1766542244400,-164.94462869,0.000189,2]
[399606968,1766542244411,-666.0,0.00018999,2]
[399606969,1766542244422,-300.0,0.00018999,2]
[399606970,1766542244432,-300.0,0.00018999,2]
[399606971,1766542244442,-68510.1668177,0.00019,2]
[399606972,1766542244453,-300.0,0.00019,2]
[399606973,1766542244468,-1187.07425713,0.00019,2]
[399606974,1766542244478,-644.75939923,0.00019,2]
[399606975,1766542244489,-782.01,0.00019046,2]
[399606976,1766542244500,-1000.0,0.00019077,2]
[399606977,1766542244511,-171.55,0.00019092,2]
[399606978,1766542244522,-823.0,0.0001913,2]
[399606979,1766542244532,-224.35,0.00019137,2]
[399606980,1766542244542,-671.0702352,0.00019164,2]
[399606981,1766542244552,-300.0,0.00019164,2]
[399606982,1766542244562,-19044.0790204,0.00019165,2]
[399606983,1766542244572,-14855.65179,0.00019165,2]
[399606984,1766542244582,-25257.4655363,0.00019165,2]
[399606985,1766542244592,-283.87,0.00019169,2]
[399606986,1766542244602,-152.0,0.00019176,4]
[399606987,1766542244612,-151.0,0.00019178,2]
[399606988,1766542244623,-151.0,0.00019178,2]
[399606989,1766542244633,-151.0,0.00019178,2]
[399606990,1766542244643,-685.135947,0.00019178,2]
[399606991,1766542244653,-685.135947,0.00019178,2]
[399606992,1766542244666,-685.135947,0.00019178,2]
[399606993,1766542244676,-685.135947,0.00019178,2]
[399606994,1766542244686,-685.135947,0.00019178,2]
[399606995,1766542244696,-685.135947,0.00019178,2]
[399606996,1766542244712,-685.135947,0.00019178,2]
[399606997,1766542244722,-685.135947,0.00019178,2]
[399606998,1766542244738,-777.86,0.00019186,2]
[399606999,1766542244755,-2114.0,0.00019258,2]
[399607000,1766542244766,-1170.47838841,0.0001927,2]
[399607001,1766542244776,-3292.0,0.00019398,2]
[399607002,1766542244786,-1000.0,0.00019438,2]
[399607003,1766542244796,-163.21355269,0.00019522,2]
[399607004,1766542244807,-274.3,0.00019604,2]
[399607005,1766542244817,-1252.0,0.00019606,2]
[399607006,1766542244827,-4249.3084017,0.00019649,2]
[399607007,1766542244837,-3314.743963,0.00019649,2]
[399607008,1766542244847,-5635.70233,0.00019649,2]
[399607009,1766542244859,-152.0,0.0001978,5]
[399607010,1766542244869,-171.77,0.000198,3]
[399607011,1766542244880,-1000.0,0.0001997,2]
[399607012,1766542244891,-200.0,0.0002,2]
[399607013,1766542244902,-500.0,0.0002,2]
[399607014,1766542244913,-163.73634219,0.0002,2]
[399607015,1766542244923,-186.82,0.0002,2]
[399607016,1766542244932,-500.0,0.00020001,2]
[399607017,1766542244943,-500.0,0.00020002,2]
[399607018,1766542244954,-499.9999,0.00020003,2]
[399607019,1766542244964,-1000.0,0.00020116,2]
[399607020,1766542244975,-150.99,0.00020145,2]
[399607021,1766542244985,-5530.74,0.00020145,2]
[399607022,1766542244996,-292.29,0.00020145,2]
[399607023,1766542245007,-1200.96,0.00020145,2]
[399607024,1766542245017,-2678.1,0.00020145,2]
[399607025,1766542245028,-6991.3,0.00020145,2]
[399607026,1766542245039,-8991.06,0.00020145,2]
[399607027,1766542245053,-714.19,0.00020187,2]
[399607028,1766542245063,-373.07297731,0.00020245,2]
[399607029,1766542245074,-152.0,0.00020383,6]
[399607030,1766542245085,-912.0,0.0002043,2]
[399607031,1766542245097,-1198.0,0.0002043,2]
[399607032,1766542245107,-210.31131003,0.0002049,2]
[399607033,1766542245117,-4810.241,0.00020537,2]
[399607034,1766542245130,-564.0,0.00020537,2]
[399607035,1766542245140,-2430.0,0.00020537,2]
[399607036,1766542245150,-150.0,0.00020688,2]
[399607037,1766542245160,-2000.0,0.000207,2]
[399607038,1766542245171,-1000.0,0.00020718,2]
[399607039,1766542245181,-782.01,0.00020778,2]
[399607040,1766542245192,-1000.0,0.00020778,2]
[399607041,1766542245202,-1000.0,0.00020795,2]
[399607042,1766542245213,-1000.0,0.00020812,2]
[399607043,1766542245224,-174.23,0.00020845,2]
[399607044,1766542245235,-299.0,0.000209,2]
[399607045,1766542245247,-983.0,0.000209,2]
[399607046,1766542245257,-305.0,0.000209,2]
[399607047,1766542245268,-849.0,0.000209,2]
[399607048,1766542245279,-1152.0,0.00020946,2]
[399607049,1766542245290,-300.0,0.0002095,2]
[399607050,1766542245300,-197.19876447,0.00020973,2]
[399607051,1766542245310,-500.41121421,0.00020973,2]
[399607052,1766542245320,-500.0,0.00020973,2]
[399607053,1766542245330,-500.0,0.00020973,2]
[399607054,1766542245341,-500.0,0.00020973,2]
[399607055,1766542245352,-500.0,0.00020973,2]
[399607056,1766542245362,-500.0,0.00020973,2]
[399607057,1766542245372,-500.0,0.00020973,2]
[399607058,1766542245382,-500.38092025,0.00020973,2]
[399607059,1766542245392,-500.0,0.00020973,2]
[399607060,1766542245402,-150.01500017,0.00020973,2]
[399607061,1766542245411,-300.0,0.00020976,2]
[399607062,1766542245422,-152.0,0.00020986,7]
[399607063,1766542245431,-200.0,0.00021,2]
[399607064,1766542245441,-350.0,0.00021,2]
[399607065,1766542245451,-150.0,0.00021029,2]
[399607066,1766542245461,-1000.0,0.00021041,2]
[399607067,1766542245471,-6846.22,0.00021068,2]
[399607068,1766542245481,-300.0,0.00021078,2]
[399607069,1766542245491,-300.0,0.00021096,2]
[399607070,1766542245500,-598.0,0.00021122,2]
[399607071,1766542245511,-300.0,0.00021161,2]
[399607072,1766542245521,-1000.0,0.00021176,2]
[399607073,1766542245531,-150.0,0.00021186,2]
[399607074,1766542245541,-343.34736146,0.000212,2]
[399607075,1766542245551,-1000.0,0.00021262,2]
[399607076,1766542245561,-1000.0,0.00021263,2]
[399607077,1766542245571,-300.0,0.00021273,2]
[399607079,1766542245582,-150.0,0.00021276,2]
[399607081,1766542245592,-1000.0,0.00021282,2]
[399607083,1766542245603,-1000.0,0.00021283,2]
[399607084,1766542245614,-300.0,0.0002129,2]
[399607085,1766542245624,-300.0,0.00021296,2]
[399607086,1766542245635,-483.13530369,0.000213,2]
[399607087,1766542245645,-412.07301772,0.00021311,2]
[399607088,1766542245656,-300.0,0.00021314,2]
[399607089,1766542245667,-150.0,0.00021316,2]
[399607090,1766542245677,-1503.4,0.00021334,2]
[399607091,1766542245688,-4609.0,0.00021338,2]
[399607092,1766542245697,-150.0,0.00021354,2]
[399607093,1766542245707,-6355.28,0.0002137,2]
[399607094,1766542245717,-300.0,0.00021383,2]
[399607095,1766542245728,-300.0,0.00021395,2]
[399607096,1766542245738,-300.0,0.00021417,2]
[399607097,1766542245748,-300.0,0.00021423,2]
[399607098,1766542245759,-300.0,0.00021431,2]
[399607099,1766542245769,-1000.0,0.00021436,2]
[399607100,1766542245779,-300.0,0.00021463,2]
[399607101,1766542245789,-306.8140135,0.00021499,2]
[399607102,1766542245799,-32636.33245444,0.000215,2]
[399607103,1766542245810,-1000.0,0.00021503,2]
[399607104,1766542245820,-300.0,0.00021505,2]
[399607105,1766542245836,-1000.0,0.00021521,2]
[399607106,1766542245846,-1000.0,0.00021521,2]
[399607107,1766542245858,-1000.0,0.00021521,2]
[399607108,1766542245868,-1002.73299854,0.00021521,2]
[399607109,1766542245877,-1000.0,0.00021521,2]
[399607110,1766542245887,-1000.0,0.00021521,2]
[399607111,1766542245896,-1000.0,0.00021521,2]
[399607112,1766542245906,-1000.0,0.00021524,2]
[399607113,1766542245916,-1000.0,0.0002153,2]
[399607114,1766542245925,-300.0,0.00021531,2]
[399607115,1766542245935,-491.4209353,0.00021544,2]
[399607116,1766542245947,-1000.0,0.00021553,2]
[399607117,1766542245958,-1000.0,0.00021559,2]
[399607118,1766542245968,-150.0,0.00021583,2]
[399607119,1766542245977,-152.0,0.0002159,8]
[399607120,1766542245987,-386.87667747,0.00021614,2]
[399607121,1766542245998,-300.0,0.00021616,2]
[399607122,1766542246007,-300.0,0.00021621,2]